fUSD/lending_fUSD_20250519
["ID","MTS","AMOUNT","RATE_DAILY","PERIOD"]
[361598038,1747631446003,-400.0,0.00013698,2]
[361598039,1747631446012,-400.0,0.00013698,2]
[361598040,1747631446022,-789.23,0.00013698,2]
[361598041,1747631446325,-1074.19,0.00013698,2]
[361598042,1747631446336,-400.0,0.00013698,2]
[361598043,1747631446347,-8946.3,0.00013698,2]
[361598044,1747631446357,-1596.07,0.00013698,2]
[361598045,1747631446366,-562.93,0.00013698,2]
[361598046,1747631446376,-264.19349624,0.00013698,2]
[361598047,1747631446386,-400.0,0.00013698,2]
[361598048,1747631446396,-783.11,0.00013698,2]
[361598049,1747631446406,-400.0,0.00013698,2]
[361598050,1747631446416,-400.0,0.00013698,2]
[361598051,1747631446425,-817.9,0.00013698,2]
[361598052,1747631446435,-475.62,0.00013698,2]
[361598053,1747631446445,-400.0,0.00013698,2]
[361598054,1747631446454,-531.957303,0.00013698,2]
[361598055,1747631446463,-17233.23,0.00013698,2]
[361598056,1747631446472,-400.0,0.00013698,2]
[361598057,1747631446482,-708.82,0.00013698,2]
[361598058,1747631446491,-400.0,0.00013698,2]
[361598059,1747631446500,-400.0,0.00013698,2]
[361598060,1747631446510,-1099.69,0.00013698,2]
[361598061,1747631446519,-508.08,0.00013698,2]
[361598062,1747631446529,-1144.85,0.00013698,2]
[361598063,1747631446539,-496.59,0.00013698,2]
[361598064,1747631446552,-400.0,0.00013698,2]
[361598065,1747631446561,-982.76,0.00013698,2]
[361598066,1747631446571,-72894.53,0.00013698,2]
[361598067,1747631446580,-461.31483318,0.00013698,2]
[361598068,1747631446590,-1359.18,0.00013698,2]
[361598069,1747631446600,-400.0,0.00013698,2]
[361598070,1747631446609,-684.19,0.00013698,2]
[361598071,1747631446619,-400.0,0.00013698,2]
[361598073,1747631446628,-654.99,0.00013698,2]
[361598075,1747631446638,-799.96,0.00013698,2]
[361598077,1747631446647,-400.0,0.00013698,2]
[361598078,1747631446657,-400.0,0.00013698,2]
[361598079,1747631446667,-2152.77,0.00013698,2]
[361598081,1747631446677,-480.48,0.00013698,2]
[361598082,1747631446687,-400.0,0.00013698,2]
[361598083,1747631446697,-3597.51,0.00013698,2]
[361598084,1747631446706,-515.76,0.00013698,2]
[361598085,1747631446715,-489.33,0.00013698,2]
[361598086,1747631446725,-7552.74,0.00013698,2]
[361598087,1747631446734,-400.0,0.00013698,2]
[361598088,1747631446743,-400.0,0.00013698,2]
[361598089,1747631446752,-400.0,0.00013698,2]
[361598090,1747631446762,-400.0,0.00013698,2]
[361598091,1747631446771,-1288.28,0.00013698,2]
[361598092,1747631446780,-400.0,0.00013698,2]
[361598093,1747631446790,-400.0,0.00013698,2]
[361598094,1747631446799,-978.370154,0.00013698,2]
[361598095,1747631446809,-400.0,0.00013698,2]
[361598096,1747631446819,-4385.69,0.00013698,2]
[361598097,1747631446828,-598.55,0.00013698,2]
[361598098,1747631446838,-2944.94,0.00013698,2]
[361598099,1747631446847,-564.33,0.00013698,2]
[361598100,1747631446857,-1123.77,0.00013698,2]
[361598101,1747631446867,-678.01,0.00013698,2]
[361598102,1747631446876,-500.0,0.00013698,2]
[361598103,1747631446887,-500.0,0.00013698,2]
[361598104,1747631446898,-401.46719586,0.00013698,2]
[361598105,1747631446908,-400.0,0.00013698,2]
[361598106,1747631446918,-406.86911768,0.00013698,2]
[361598107,1747631446927,-532.97,0.00013698,2]
[361598108,1747631446937,-400.0,0.00013698,2]
[361598109,1747631446946,-14487.62,0.00013698,2]
[361598110,1747631446955,-2318.62,0.00013698,2]
[361598111,1747631446965,-1000.0,0.00013698,2]
[361598112,1747631446975,-1813.59,0.00013698,2]
[361598113,1747631446984,-1612.51,0.00013698,2]
[361598114,1747631446994,-6156.43,0.00013698,2]
[361598115,1747631447003,-4544.08,0.00013698,2]
[361598116,1747631447013,-400.0,0.00013698,2]
[361598117,1747631447022,-2207.03,0.00013698,2]
[361598118,1747631447031,-412.01,0.00013698,2]
[361598119,1747631447040,-400.0,0.00013698,2]
[361598120,1747631447049,-1764.35,0.00013698,2]
[361598121,1747631447059,-235.60290371,0.00013698,2]
[361598122,1747631447068,-573.73,0.00013698,2]
[361598123,1747631447077,-736.3,0.00013698,2]
[361598124,1747631447086,-1024.19,0.00013698,2]
[361598125,1747631447096,-415.85,0.00013698,2]
[361598126,1747631447107,-400.0,0.00013698,2]
[361598127,1747631447117,-1012.76,0.00013698,2]
[361598128,1747631447126,-3292.08,0.00013698,2]
[361598129,1747631447136,-592.9,0.00013698,2]
[361598130,1747631447145,-415.53,0.00013698,2]
[361598131,1747631447155,-400.0,0.00013698,2]
[361598132,1747631447164,-400.0,0.00013698,2]
[361598133,1747631447174,-1036.21,0.00013698,2]
[361598134,1747631447183,-2459.2,0.00013698,2]
[361598135,1747631447194,-2359.97,0.00013698,2]
[361598136,1747631447203,-400.0,0.00013698,2]
[361598137,1747631447212,-400.0,0.00013698,2]
[361598138,1747631447222,-400.0,0.00013698,2]
[361598139,1747631447232,-400.0,0.00013698,2]
[361598140,1747631447242,-400.0,0.00013698,2]
[361598141,1747631447252,-634.14,0.00013698,2]
[361598142,1747631447261,-6860.37,0.00013698,2]
[361598143,1747631447271,-400.0,0.00013698,2]
[361598144,1747631447280,-400.0,0.00013698,2]
[361598145,1747631447290,-430.84,0.00013698,2]
[361598146,1747631447299,-3437.31,0.00013698,2]
[361598147,1747631447309,-640.67,0.00013698,2]
[361598148,1747631447319,-400.0,0.00013698,2]
[361598149,1747631447329,-1873.52,0.00013698,2]
[361598150,1747631447339,-2107.41,0.00013698,2]
[361598151,1747631447351,-849.47,0.00013698,2]
[361598152,1747631447360,-1464.05,0.00013698,2]
[361598153,1747631447370,-400.0,0.00013698,2]
[361598154,1747631447379,-1068.25,0.00013698,2]
[361598155,1747631447389,-838.7,0.00013698,2]
[361598156,1747631447398,-414.87,0.00013698,2]
[361598157,1747631447408,-400.0,0.00013698,2]
[361598158,1747631447417,-400.0,0.00013698,2]
[361598159,1747631447427,-1065.0,0.00013698,2]
[361598160,1747631447436,-400.0,0.00013698,2]
[361598161,1747631447445,-669.7,0.00013698,2]
[361598162,1747631447455,-400.0,0.00013698,2]
[361598163,1747631447464,-10755.33,0.00013698,2]
[361598164,1747631447474,-604.36,0.00013698,2]
[361598165,1747631447483,-788.24,0.00013698,2]
[361598166,1747631447492,-536.45,0.00013698,2]
[361598167,1747631447502,-466.65,0.00013698,2]
[361598168,1747631447511,-986.96,0.00013698,2]
[361598169,1747631447520,-414.59,0.00013698,2]
[361598170,1747631447530,-400.0,0.00013698,2]
[361598171,1747631447539,-400.0,0.00013698,2]
[361598172,1747631447552,-403.28142654,0.00013698,2]
[361598173,1747631447562,-400.0,0.00013698,2]
[361598174,1747631447571,-2034.21,0.00013698,2]
[361598175,1747631447580,-400.0,0.00013698,2]
[361598176,1747631447590,-708.0,0.00013698,2]
[361598177,1747631447601,-3391.65,0.00013698,2]
[361598178,1747631447610,-1654.05,0.00013698,2]
[361598179,1747631447619,-400.0,0.00013698,2]
[361598180,1747631447629,-400.0,0.00013698,2]
[361598181,1747631447640,-400.0,0.00013698,2]
[361598182,1747631447649,-453.37,0.00013698,2]
[361598183,1747631447658,-400.0,0.00013698,2]
[361598184,1747631447668,-400.0,0.00013698,2]
[361598185,1747631447677,-1881.16,0.00013698,2]
[361598186,1747631447687,-638.93,0.00013698,2]
[361598187,1747631447697,-2088.52,0.00013698,2]
[361598188,1747631447706,-1493.55,0.00013699,2]
[361598189,1747631447716,-553.42,0.00013699,2]
[361598190,1747631447726,-3030.29837502,0.00013699,2]
[361598191,1747631447735,-2008.51542958,0.00013699,2]
[361598192,1747631447744,-367.69988948,0.00013699,2]
[361598193,1747631447753,-500.0,0.00013699,2]
[361598194,1747631447764,-203.35728366,0.00013699,2]
[361598195,1747631447774,-500.0,0.00013699,2]
[361598196,1747631447783,-500.0,0.00013699,2]
[361598197,1747631447794,-500.0,0.00013699,2]
[361598198,1747631447805,-500.0,0.00013699,2]
[361598199,1747631447815,-500.0,0.00013699,2]
[361598200,1747631447827,-500.0,0.00013699,2]
[361598201,1747631447836,-416.80807469,0.00013699,2]
[361598202,1747631447847,-500.0,0.00013699,2]
[361598203,1747631447859,-500.0,0.00013699,2]
[361598204,1747631447868,-500.0,0.00013699,2]
[361598205,1747631447877,-500.0,0.00013699,2]
[361598206,1747631447887,-500.0,0.00013699,2]
[361598207,1747631447896,-500.0,0.00013699,2]
[361598208,1747631447905,-500.0,0.00013699,2]
[361598209,1747631447915,-500.0,0.00013699,2]
[361598210,1747631447924,-500.0,0.00013699,2]
[361598211,1747631447934,-500.0,0.00013699,2]
[361598212,1747631447943,-500.0,0.00013699,2]
[361598213,1747631447953,-500.0,0.00013699,2]
[361598214,1747631447962,-500.0,0.00013699,2]
[361598215,1747631447972,-500.0,0.00013699,2]
[361598216,1747631447981,-500.0,0.00013699,2]
[361598217,1747631447991,-500.0,0.00013699,2]
[361598218,1747631448000,-500.0,0.00013699,2]
[361598219,1747631448010,-500.0,0.00013699,2]
[361598220,1747631448020,-500.0,0.00013699,2]
[361598221,1747631448029,-500.0,0.00013699,2]
[361598222,1747631448039,-500.0,0.00013699,2]
[361598223,1747631448049,-500.0,0.00013699,2]
[361598224,1747631448059,-500.0,0.00013699,2]
[361598225,1747631448069,-500.0,0.00013699,2]
[361598226,1747631448078,-180.99441258,0.00013699,2]
[361598227,1747631448088,-500.0,0.00013699,2]
[361598228,1747631448098,-500.0,0.00013699,2]
[361598229,1747631448112,-500.0,0.00013699,2]
[361598230,1747631448122,-500.0,0.00013699,2]
[361598231,1747631448132,-500.0,0.00013699,2]
[361598232,1747631448143,-500.0,0.00013699,2]
[361598233,1747631448152,-500.0,0.00013699,2]
[361598234,1747631448162,-1033.41,0.000137,2]
[361598235,1747631448172,-452.61173088,0.00013704,2]
[361598236,1747631448182,-500.0,0.00013708,2]
[361598237,1747631448191,-190.16837017,0.00013708,2]
[361598238,1747631448201,-167.44296889,0.00013708,2]
[361598239,1747631448211,-252.60853569,0.00013708,2]
[361598240,1747631448220,-4493.74857694,0.00013728,2]
[361598241,1747631448230,-3030.29837502,0.00013732,2]
[361598242,1747631448239,-2008.51542958,0.00013732,2]
[361598243,1747631448249,-5943.0,0.00013736,2]
[361598244,1747631448258,-1149.0,0.00013736,2]
[361598245,1747631448268,-169.11500596,0.00013749,2]
[361598246,1747631448278,-3030.29837502,0.00013766,2]
[361598247,1747631448288,-2008.51542958,0.00013766,2]
[361598248,1747631448298,-6830.0,0.00013791,2]
[361598249,1747631448307,-4043.0,0.00013791,2]
[361598250,1747631448317,-157.128,0.00013791,2]
[361598251,1747631448327,-880.0,0.00013791,2]
[361598252,1747631448336,-856.315,0.00013791,2]
[361598253,1747631448345,-351.26165927,0.00013794,2]
[361598254,1747631448358,-4493.74857694,0.00013797,2]
[361598255,1747631448368,-259.2697858,0.00013797,2]
[361598256,1747631448377,-3030.29837502,0.00013799,2]
[361598257,1747631448387,-2008.51542958,0.00013799,2]
[361598258,1747631448397,-167.44296888,0.00013804,2]
[361598259,1747631448406,-500.0,0.00013807,2]
[361598260,1747631448416,-500.0,0.00013807,2]
[361598261,1747631448425,-500.0,0.00013807,2]
[361598262,1747631448435,-500.0,0.00013807,2]
[361598263,1747631448445,-500.0,0.00013807,2]
[361598264,1747631448455,-500.0,0.00013807,2]
[361598265,1747631448464,-500.0,0.00013807,2]
[361598266,1747631448474,-500.0,0.00013807,2]
[361598267,1747631448483,-323.43762361,0.00013807,2]
[361598268,1747631448493,-313973.17625207,0.00013808,2]
[361598269,1747631449005,-1005.32904095,0.00013808,2]
[361598270,1747631449698,-259.12,0.00013698,2]
[361598271,1747631449709,-581.54,0.00013698,2]
[361598272,1747631449718,-400.0,0.00013698,2]
[361598273,1747631449727,-400.0,0.00013698,2]
[361598274,1747631449736,-4592.99,0.00013808,2]
[361598275,1747631449880,-3873.95842349,0.00013808,2]
[361598276,1747631449918,-1452.12824274,0.00013808,2]
[361598277,1747631449931,-450.0,0.00013808,2]
[361598278,1747631449948,-522.5,0.00013808,2]
[361598279,1747631449998,-927.41074029,0.00013808,2]
[361598280,1747631450013,-1118.56732739,0.00013808,2]
[361598281,1747631450512,-1500.0,0.00013699,2]
[361598282,1747631450521,-991.06138001,0.00013808,2]
[361598283,1747631450558,-367.18095745,0.00013808,2]
[361598284,1747631450569,-1065.49943472,0.00013808,2]
[361598285,1747631450580,-263.258183,0.00013808,2]
[361598286,1747631450596,-2269.71357406,0.00013808,2]
[361598287,1747631450608,-1304.3098679,0.00013808,2]
[361598288,1747631450620,-23560.20500446,0.00013808,2]
[361598289,1747631450630,-779.81344171,0.00013808,2]
[361598290,1747631450641,-4718.19999999,0.00013808,2]
[361598291,1747631450678,-400.0,0.00013698,2]
[361598292,1747631450687,-391.91003279,0.00013808,2]
[361598293,1747631450698,-1436.79840306,0.00013808,2]
[361598294,1747631582232,489.61,0.00010922,2]
[361598295,1747631598268,504.448437,0.00025999,120]
[361598296,1747631863961,-19295.0,0.00015,7]
[361598297,1747631864490,-705.0,0.000149,5]
[361598298,1747631948240,21821.373765,7.945e-05,2]
[361598299,1747632071892,573.0,0.00014,30]
[361598300,1747632106204,202.0,0.00010679,2]
[361598302,1747632177084,-233.82104856,0.00011885,2]
[361598303,1747632180955,-161.7,0.00011885,2]
[361598304,1747632183094,-248.4721287,0.00011885,2]
[361598305,1747632189808,-215.95880197,0.00011885,2]
[361598306,1747632191477,-324.88573277,0.00011885,2]
[361598307,1747632191499,-19.96039059,0.00011945,2]
[361598308,1747632198355,-180.03960941,0.00011945,2]
[361598309,1747632199850,500.0,0.00025999,120]
[361598311,1747632268638,646.93729737,0.00027397,120]
[361598312,1747632336273,2446.38051852,9e-05,2]
[361598313,1747632354112,5922.91674768,6.94e-05,2]
[361598314,1747632361870,785.87674691,8e-05,2]
[361598315,1747632365663,231.17467196,8e-05,2]
[361598318,1747632381546,1823.0,0.00027397,120]
[361598319,1747632399254,597.0,0.00025,60]
[361598320,1747632412309,-169.31343352,0.00012087,2]
[361598321,1747632412331,-200.0,0.00012173,2]
[361598322,1747632412353,-250.0,0.00012185,2]
[361598323,1747632412375,-94.21680846,0.00012185,2]
[361598324,1747632426398,-905.78319154,0.00012185,2]
[361598325,1747632426421,-1200.0,0.00012187,2]
[361598326,1747632426444,-300.0,0.00012187,2]
[361598327,1747632426466,-300.0,0.00012187,2]
[361598328,1747632426489,-15815.19,0.00012188,2]
[361598329,1747632426510,-3283.19,0.00012196,2]
[361598330,1747632426531,-213.27,0.00012211,2]
[361598331,1747632426553,-253.75,0.00012214,2]
[361598332,1747632426577,-832.87,0.00012217,2]
[361598333,1747632426598,-182.62,0.00012236,2]
[361598334,1747632426620,-511.42131453,0.00012648,2]
[361598335,1747632426641,-567.72,0.00012795,2]
[361598336,1747632426665,-567.72,0.00012798,2]
[361598337,1747632426687,-567.72,0.00012802,2]
[361598338,1747632426712,-567.72,0.00012805,2]
[361598339,1747632426734,-567.72,0.00012808,2]
[361598340,1747632426755,-567.72,0.00012812,2]
[361598341,1747632426779,-567.72,0.00012815,2]
[361598342,1747632426801,-567.72,0.00012819,2]
[361598343,1747632426823,-567.72,0.00012822,2]
[361598344,1747632426845,-567.72,0.00012825,2]
[361598345,1747632426867,-567.72,0.00012829,2]
[361598346,1747632426890,-567.72,0.00012832,2]
[361598347,1747632426914,-567.72,0.00012835,2]
[361598348,1747632426936,-567.72,0.00012839,2]
[361598349,1747632426959,-567.72,0.00012842,2]
[361598350,1747632426983,-567.72,0.00012846,2]
[361598351,1747632427006,-150.0,0.00012846,2]
[361598352,1747632427033,-567.72,0.00012849,2]
[361598353,1747632427056,-567.72,0.00012852,2]
[361598354,1747632427079,-567.72,0.00012856,2]
[361598355,1747632427102,-417.72,0.00012859,2]
[361598356,1747632442089,-150.0,0.00012859,2]
[361598357,1747632442113,-357.84641787,0.00013,2]
[361598358,1747632456013,150.0,1e-08,2]
[361598359,1747632471286,7934.66226366,0.0001,2]
[361598361,1747632555093,-1555.10304719,0.00012,2]
[361598362,1747632555116,-200.0,0.00012302,2]
[361598363,1747632565214,698.8,0.00010259,2]
[361598364,1747632569085,-698.8,0.00012523,2]
[361598370,1747632632189,-1200.0,0.00012603,2]
[361598372,1747632632199,-2350.14504861,0.00012604,2]
[361598375,1747632632210,-1461.8,0.00012604,2]
[361598376,1747632632256,-1368.93615679,0.00012604,2]
[361598377,1747632632267,-3633.65693487,0.00012604,2]
[361598378,1747632632310,-2361.72927958,0.00012604,2]
[361598379,1747632632322,-6450.15806206,0.00012604,2]
[361598380,1747632632333,-2593.45,0.00012604,2]
[361598381,1747632632383,-1389.00795853,0.00012604,2]
[361598382,1747632632394,-1736.22084195,0.00012604,2]
[361598383,1747632632406,-9455.45973701,0.00012604,2]
[361598384,1747632632419,-7820.1459806,0.00012604,2]
[361598385,1747632632429,-150.0,0.00012999,2]
[361598386,1747632632438,-297.89358213,0.00013,2]
[361598387,1747632632447,-655.74,0.00013,2]
[361598388,1747632632458,-536.55832197,0.00013,2]
[361598389,1747632632492,-119.18167803,0.00013,2]
[361598390,1747632632502,-356.46114206,0.00013,2]
[361598391,1747632632515,-299.27885794,0.00013,2]
[361598392,1747632632524,-655.74,0.00013,2]
[361598393,1747632632533,-504.68897912,0.0001313,2]
[361598394,1747632632545,-315.35108287,0.0001313,2]
[361598395,1747632632557,-255.95993801,0.0001313,2]
[361598396,1747632632566,-114.08028823,0.000132,2]
[361598398,1747632632612,-85.91971177,0.000132,2]
[361598400,1747632632621,-509.72016304,0.0001322,2]
[361598402,1747632632632,-236.29936458,0.0001322,2]
[361598404,1747632632642,-151.0,0.00013222,2]
[361598406,1747632632651,-155.0,0.00013222,2]
[361598408,1747632632662,-668.65185757,0.00013222,2]
[361598410,1747632632671,-17.97186959,0.00013222,2]
[361598413,1747632632683,-650.67998798,0.00013222,2]
[361598415,1747632632692,-207.4,0.00013222,2]
[361598417,1747632632701,-150.0,0.00013278,2]
[361598419,1747632632710,-200.0,0.00013296,2]
[361598421,1747632632719,-150.0,0.00013298,2]
[361598423,1747632632728,-150.0,0.00013298,2]
[361598425,1747632632737,-150.0,0.00013298,2]
[361598427,1747632632746,-150.0,0.00013398,2]
[361598429,1747632632755,-150.0,0.00013398,2]
[361598431,1747632632764,-143.81384321,0.00013398,2]
[361598433,1747632632775,-6.18615679,0.00013398,2]
[361598435,1747632632784,-864.76119748,0.00013425,2]
[361598437,1747632632793,-167.95462308,0.00013452,2]
[361598439,1747632632803,-170.75,0.00013452,2]
[361598441,1747632632811,-150.0,0.00013452,2]
[361598443,1747632632820,-150.0,0.00013452,2]
[361598445,1747632632829,-150.0,0.00013452,2]
[361598447,1747632632838,-150.0,0.00013498,2]
[361598449,1747632632848,-150.0,0.00013498,2]
[361598451,1747632632858,-150.0,0.00013498,2]
[361598453,1747632632867,-150.0,0.00013498,2]
[361598454,1747632632876,-452.61173088,0.00013585,2]
[361598455,1747632632885,-167.95462308,0.00013589,2]
[361598456,1747632632894,-1810.65934669,0.00013598,2]
[361598457,1747632632904,-151.27066873,0.00013598,2]
[361598459,1747632632913,-252.60853569,0.00013598,2]
[361598460,1747632632923,-500.0,0.00013598,2]
[361598461,1747632632932,-10514.9107,0.00013598,2]
[361598462,1747632632942,-655.04,0.00013598,2]
[361598463,1747632632951,-4578.8999,0.00013598,2]
[361598464,1747632632959,-228.20204423,0.00013599,2]
[361598465,1747632632968,-167.44296889,0.00013599,2]
[361598466,1747632632979,-1000.0,0.00013612,2]
[361598467,1747632632990,-1810.6593466,0.00013632,2]
[361598468,1747632633000,-151.27066866,0.00013641,2]
[361598469,1747632633009,-167.44296889,0.00013659,2]
[361598470,1747632633018,-230.99627713,0.00013664,2]
[361598471,1747632633028,-500.0,0.00013664,2]
[361598472,1747632633037,-500.0,0.00013664,2]
[361598473,1747632633046,-500.0,0.00013664,2]
[361598474,1747632633055,-500.0,0.00013664,2]
[361598475,1747632633064,-500.0,0.00013664,2]
[361598476,1747632633073,-500.0,0.00013664,2]
[361598477,1747632633083,-500.0,0.00013664,2]
[361598478,1747632633092,-500.0,0.00013664,2]
[361598479,1747632633102,-500.0,0.00013664,2]
[361598480,1747632633111,-324.97674,0.00013664,2]
[361598481,1747632633120,-500.0,0.00013664,2]
[361598482,1747632633130,-500.0,0.00013664,2]
[361598483,1747632633139,-500.0,0.00013664,2]
[361598484,1747632633148,-556.18064039,0.00013664,2]
[361598485,1747632633158,-500.0,0.00013664,2]
[361598486,1747632633167,-500.0,0.00013664,2]
[361598487,1747632633176,-500.0,0.00013664,2]
[361598488,1747632633185,-500.0,0.00013664,2]
[361598489,1747632633194,-500.0,0.00013664,2]
[361598490,1747632633203,-500.0,0.00013664,2]
[361598491,1747632633212,-500.0,0.00013664,2]
[361598492,1747632633221,-500.0,0.00013664,2]
[361598493,1747632633231,-500.0,0.00013664,2]
[361598494,1747632633242,-500.0,0.00013664,2]
[361598495,1747632633251,-500.0,0.00013664,2]
[361598496,1747632633260,-500.0,0.00013664,2]
[361598497,1747632633269,-500.0,0.00013664,2]
[361598498,1747632633278,-500.0,0.00013664,2]
[361598499,1747632633287,-500.0,0.00013664,2]
[361598500,1747632633297,-500.0,0.00013664,2]
[361598501,1747632633306,-500.0,0.00013664,2]
[361598502,1747632633315,-500.0,0.00013664,2]
[361598503,1747632633325,-500.0,0.00013664,2]
[361598504,1747632633334,-500.0,0.00013664,2]
[361598505,1747632633344,-500.0,0.00013664,2]
[361598506,1747632633355,-500.0,0.00013664,2]
[361598507,1747632633365,-500.0,0.00013664,2]
[361598508,1747632633375,-500.0,0.00013664,2]
[361598509,1747632633384,-500.0,0.00013664,2]
[361598510,1747632633394,-500.0,0.00013664,2]
[361598511,1747632633403,-500.0,0.00013664,2]
[361598512,1747632633412,-500.0,0.00013664,2]
[361598513,1747632633421,-500.0,0.00013664,2]
[361598514,1747632633430,-500.0,0.00013664,2]
[361598515,1747632633440,-500.0,0.00013664,2]
[361598516,1747632633450,-500.0,0.00013664,2]
[361598517,1747632633459,-250.0,0.00013664,2]
[361598518,1747632633469,-1810.6593466,0.00013665,2]
[361598519,1747632633478,-508.08214648,0.00013673,2]
[361598520,1747632633488,-503.15392951,0.00013673,2]
[361598521,1747632633497,-228.2020442,0.00013674,2]
[361598522,1747632633507,-151.27066866,0.00013684,2]
[361598523,1747632633516,-26546.81985028,0.00013697,2]
[361598524,1747632633526,-400.0,0.00013698,2]
[361598525,1747632633535,-400.0,0.00013698,2]
[361598526,1747632633545,-400.0,0.00013698,2]
[361598527,1747632633555,-400.0,0.00013698,2]
[361598528,1747632633564,-928.00824,0.00013698,2]
[361598529,1747632633574,-400.0,0.00013698,2]
[361598530,1747632633583,-400.0,0.00013698,2]
[361598531,1747632633592,-400.0,0.00013698,2]
[361598532,1747632633602,-3250.887854,0.00013698,2]
[361598533,1747632633612,-1034.372137,0.00013698,2]
[361598534,1747632633621,-400.0,0.00013698,2]
[361598535,1747632633630,-400.0,0.00013698,2]
[361598536,1747632633640,-400.0,0.00013698,2]
[361598537,1747632633649,-400.0,0.00013698,2]
[361598538,1747632633658,-313.339043,0.00013698,2]
[361598539,1747632633667,-401.9694287,0.00013698,2]
[361598540,1747632633676,-400.0,0.00013698,2]
[361598541,1747632633685,-400.0,0.00013698,2]
[361598542,1747632633694,-400.0,0.00013698,2]
[361598543,1747632633704,-424.09,0.00013698,2]
[361598544,1747632633713,-400.0,0.00013698,2]
[361598545,1747632633723,-400.0,0.00013698,2]
[361598546,1747632633732,-400.0,0.00013698,2]
[361598547,1747632633742,-409.05,0.00013698,2]
[361598548,1747632633752,-400.0,0.00013698,2]
[361598549,1747632633762,-439.74,0.00013698,2]
[361598550,1747632633771,-400.0,0.00013698,2]
[361598551,1747632633781,-400.0,0.00013698,2]
[361598552,1747632633790,-400.0,0.00013698,2]
[361598553,1747632633800,-839.56,0.00013698,2]
[361598554,1747632633809,-223.40647634,0.00013698,2]
[361598557,1747632638189,-176.59352366,0.00013698,2]
[361598558,1747632638199,-400.0,0.00013698,2]
[361598559,1747632638209,-400.0,0.00013698,2]
[361598560,1747632638218,-400.0,0.00013698,2]
[361598561,1747632638227,-400.0,0.00013698,2]
[361598562,1747632638239,-400.0,0.00013698,2]
[361598563,1747632638248,-400.0,0.00013698,2]
[361598564,1747632638257,-153.148478,0.00013698,2]
[361598565,1747632638267,-400.0,0.00013698,2]
[361598566,1747632638276,-400.0,0.00013698,2]
[361598567,1747632638285,-400.0,0.00013698,2]
[361598568,1747632638295,-400.0,0.00013698,2]
[361598569,1747632638304,-162.331783,0.00013698,2]
[361598570,1747632638313,-400.0,0.00013698,2]
[361598571,1747632638324,-400.0,0.00013698,2]
[361598572,1747632638333,-400.0,0.00013698,2]
[361598573,1747632638342,-400.0,0.00013698,2]
[361598574,1747632638352,-408.25090729,0.00013698,2]
[361598575,1747632638361,-400.0,0.00013698,2]
[361598576,1747632638370,-400.0,0.00013698,2]
[361598577,1747632638379,-400.0,0.00013698,2]
[361598578,1747632638388,-400.0,0.00013698,2]
[361598579,1747632638397,-400.0,0.00013698,2]
[361598580,1747632638406,-400.0,0.00013698,2]
[361598581,1747632638416,-487.52,0.00013698,2]
[361598582,1747632638425,-227.01079055,0.00013698,2]
[361598584,1747632638434,-400.0,0.00013698,2]
[361598586,1747632638443,-400.0,0.00013698,2]
[361598587,1747632638452,-156.146533,0.00013698,2]
[361598588,1747632638461,-400.0,0.00013698,2]